bitfinex/quotes_SOLUSD_20260304
["timestamp","ask_amount","ask_price","bid_price","bid_amount"]
[1772643045280,4.11288942,91.64,91.432,51.13069949]
[1772643045281,4.11288942,91.6,91.511,0.4154772]
[1772643045462,4.82477569,91.602,91.511,0.4154772]
[1772643045660,4.38210099,91.608,91.511,0.4154772]
[1772643045860,4.38210099,91.607,91.515,3.69383402]
[1772643046483,4.38210099,91.603,91.512,38.2463502]
[1772643046676,4.38210099,91.603,91.515,3.69383402]
[1772643047062,4.38210099,91.603,91.516,4.48322417]
[1772643047261,4.38210099,91.603,91.521,4.76754731]
[1772643047689,4.38210099,91.603,91.521,4.48322417]
[1772643047862,4.38210099,91.601,91.526,4.48322417]
[1772643048067,38.20877272,91.602,91.526,4.48322417]
[1772643048068,4.38210099,91.599,91.526,4.48322417]
[1772643048365,4.38210099,91.599,91.525,3.69383402]
[1772643048366,4.38210099,91.599,91.532,4.4668379]
[1772643048568,10.9167922,91.602,91.532,4.4668379]
[1772643049785,4.09502724,91.601,91.532,4.4668379]
[1772643050085,10.91703056,91.6,91.537,4.4668379]
[1772643050285,38.20960697,91.6,91.537,4.4668379]
[1772643050870,42.30463421,91.6,91.537,4.4668379]
[1772643051575,4.09502724,91.599,91.539,4.4668379]
[1772643052987,4.09502724,91.599,91.541,4.4668379]
[1772643053682,4.09502724,91.599,91.543,4.4668379]
[1772643053683,10.91726893,91.598,91.543,4.4668379]
[1772643054789,4.09502724,91.597,91.543,4.4668379]
[1772643055688,10.91750731,91.596,91.545,4.4668379]
[1772643056382,15.01253455,91.596,91.545,4.4668379]
[1772643056789,27.29317234,91.67,91.544,38.23298085]
[1772643056790,4.09502724,91.642,91.548,4.75116104]
[1772643056968,4.09502724,91.64,91.548,4.75116104]
[1772643057683,3.69383402,91.66,91.548,4.75116104]
[1772643057684,4.09502724,91.638,91.554,0.28432314]
[1772643057874,4.09502724,91.638,91.558,4.75116104]
[1772643058079,4.09502724,91.638,91.558,4.4668379]
[1772643058684,4.09502724,91.632,91.558,4.4668379]
[1772643059889,4.09502724,91.63,91.56,4.4668379]
[1772643060084,38.19668015,91.631,91.562,4.4668379]
[1772643060269,10.91333718,91.631,91.562,4.4668379]
[1772643060471,4.09502724,91.63,91.562,4.4668379]
[1772643061898,4.09502724,91.628,91.564,4.4668379]
[1772643062476,4.09502724,91.628,91.566,4.4668379]
[1772643064294,4.09502724,91.626,91.568,4.4668379]
[1772643065596,4.09502724,91.619,91.559,4.4668379]
[1772643066579,4.09502724,91.617,91.561,4.4668379]
[1772643068702,4.09502724,91.617,91.528,3.69383402]
[1772643068703,4.09502724,91.615,91.563,4.4668379]
[1772643070081,37.31267435,91.628,91.568,4.4668379]
[1772643070284,4.09502724,91.626,91.568,4.4668379]
[1772643070907,4.09502724,91.624,91.57,4.4668379]
[1772643073210,4.09502724,91.622,91.572,4.4668379]
[1772643074502,4.09502724,91.589,91.528,4.4668379]
[1772643074709,4.09502724,91.589,91.53,4.4668379]
[1772643075405,4.09502724,91.587,91.532,4.4668379]
[1772643077615,10.91726893,91.598,91.534,4.4668379]
[1772643077798,4.09502724,91.597,91.534,4.4668379]
[1772643079198,10.91726893,91.598,91.536,4.28346864]
[1772643079417,32.16287435,91.599,91.539,4.56779178]
[1772643079724,32.16287435,91.599,91.552,4.28346864]
[1772643079925,32.16287435,91.599,91.554,4.28346864]
[1772643080219,4.05904056,91.624,91.557,4.28346864]
[1772643080390,25.73029948,91.649,91.566,0.28432314]
[1772643080591,25.73029948,91.649,91.583,4.28346864]
[1772643080791,25.73029948,91.649,91.593,4.28346864]
[1772643080993,25.64705332,91.65,91.593,4.28346864]
[1772643081210,10.91131284,91.648,91.594,38.21210995]
[1772643081413,14.9703534,91.648,91.595,4.28346864]
[1772643081799,38.18959496,91.648,91.595,4.28346864]
[1772643081997,4.05904056,91.647,91.595,4.28346864]
[1772643082721,10.91131284,91.648,91.595,4.28346864]
[1772643082939,4.05904056,91.647,91.595,4.28346864]
[1772643083100,4.05904056,91.647,91.571,3.8923904]
[1772643083101,4.05904056,91.647,91.585,4.28346864]
[1772643083422,4.05904056,91.645,91.586,10.91869936]
[1772643083824,4.05904056,91.645,91.586,15.202168]
[1772643084320,4.05904056,91.645,91.587,4.28346864]
[1772643085530,4.22821211,91.643,91.588,10.91846093]
[1772643085694,4.22821211,91.643,91.589,4.29284733]
[1772643086222,10.91178909,91.644,91.589,4.29284733]
[1772643086801,4.22821211,91.643,91.589,4.29284733]
[1772643087616,4.22821211,91.641,91.591,4.29284733]
[1772643088615,4.22821211,91.639,91.593,4.29284733]
[1772643089223,10.91226538,91.64,91.593,4.29284733]
[1772643090117,10.91172792,91.645,91.593,4.29284733]
[1772643090321,4.22821211,91.667,91.596,4.29284733]
[1772643090620,8.82016564,91.7,91.614,4.29284733]
[1772643090621,4.22821211,91.7,91.614,4.29284733]
[1772643090806,10.90667161,91.687,91.622,4.29284733]
[1772643091309,10.90607142,91.693,91.622,4.29284733]
[1772643091502,4.22821211,91.689,91.622,4.29284733]
[1772643091902,10.79038574,91.69,91.622,4.29284733]
[1772643092724,10.90452782,91.706,91.627,4.57717047]
[1772643093016,15.13273993,91.706,91.623,107.41399494]
[1772643093227,4.22821211,91.705,91.623,79.62936349]
[1772643093817,4.22821211,91.705,91.623,134.20081389]
[1772643094124,4.22821211,91.705,91.623,35.97220317]
[1772643094508,4.22821211,91.711,91.623,166.94368413]
[1772643094709,10.90393632,91.71,91.623,130.97148096]
[1772643094914,10.90393632,91.71,91.627,0.28432314]
[1772643095218,4.22821211,91.711,91.644,4.29284733]
[1772643095423,4.22821211,91.711,91.648,4.29284733]
[1772643095606,4.22821211,91.711,91.65,4.29284733]
[1772643096225,4.22821211,91.709,91.65,4.29284733]
[1772643096427,0.28432314,91.704,91.65,4.29284733]
[1772643096717,4.22821211,91.703,91.65,4.29284733]
[1772643097505,11.1871895,91.719,91.652,4.29284733]
[1772643097817,0.28432314,91.708,91.652,4.29284733]
[1772643098019,4.51253525,91.708,91.652,4.29284733]
[1772643099230,0.28432314,91.718,91.652,4.29284733]
[1772643099405,4.22821211,91.727,91.657,4.57717047]
[1772643099750,4.22821211,91.737,91.662,4.57717047]
[1772643099911,0.28432314,91.734,91.662,4.57717047]
[1772643100111,4.22821211,91.734,91.662,4.57717047]
[1772643100329,10.90075456,91.737,91.662,4.57717047]
[1772643100512,4.22821211,91.738,91.662,4.57717047]
[1772643100707,4.22821211,91.738,91.662,4.29284733]
[1772643100911,4.22821211,91.738,91.664,4.29284733]
[1772643101526,4.22821211,91.736,91.666,4.29284733]
[1772643102235,4.22821211,91.729,91.665,38.18251239]
[1772643102409,4.22821211,91.729,91.665,10.90928925]
[1772643103024,4.22821211,91.729,91.666,4.29284733]
[1772643103610,57.44672747,91.74,91.649,4.29284733]
[1772643103611,0.28432314,91.706,91.649,4.29284733]
[1772643103938,4.22821211,91.683,91.649,4.29284733]
[1772643105507,4.51253525,91.715,91.649,4.29284733]
[1772643105712,0.28432314,91.711,91.651,4.29284733]
[1772643105913,4.22821211,91.694,91.651,4.29284733]
[1772643106126,4.22821211,91.684,91.651,4.29284733]
[1772643106937,0.28432314,91.692,91.651,4.29284733]
[1772643107612,10.9061958,91.691,91.653,4.29284733]
[1772643108244,4.22821211,91.709,91.653,4.29284733]
[1772643108627,4.22821211,91.709,91.655,4.20765383]
[1772643109432,4.22821211,91.709,91.652,10.91083664]
[1772643109642,4.25228635,91.707,91.652,4.20765383]
[1772643110120,4.25228635,91.707,91.64,4.20765383]
[1772643110746,4.25228635,91.705,91.64,4.20765383]
[1772643110925,0.28432314,91.684,91.64,4.20765383]
[1772643111125,4.25228635,91.673,91.64,4.20765383]
[1772643112641,0.28432314,91.678,91.642,4.20765383]
[1772643112945,4.25228635,91.682,91.642,4.20765383]
[1772643113527,4.25228635,91.68,91.642,4.20765383]
[1772643113945,4.25228635,91.674,91.642,4.20765383]
[1772643115849,15.16053807,91.674,91.644,4.20765383]
[1772643116043,208.51032977,91.722,91.644,4.20765383]
[1772643116252,4.25228635,91.714,91.644,4.20765383]
[1772643118444,4.25228635,91.714,91.627,148.60989564]
[1772643118445,4.25228635,91.701,91.645,10.91167003]
[1772643118649,4.25228635,91.699,91.645,10.91167003]
[1772643119733,0.28432314,91.678,91.628,4.20765383]
[1772643119934,0.28432314,91.66,91.628,4.20765383]
[1772643120250,3.69383402,91.687,91.627,10.91381361]
[1772643120251,4.25228635,91.653,91.627,10.91381361]
[1772643120451,4.25228635,91.651,91.619,10.91476658]
[1772643120838,10.90784082,91.678,91.62,4.20765383]
[1772643121154,0.28432314,91.677,91.62,4.20765383]
[1772643121447,4.53660949,91.677,91.62,4.20765383]
[1772643122630,27.26738407,91.685,91.622,4.20765383]
[1772643122631,0.28432314,91.675,91.622,4.20765383]
[1772643123644,10.90786852,91.677,91.622,4.20765383]
[1772643123645,4.25228635,91.674,91.622,4.20765383]
[1772643124549,38.17918034,91.673,91.623,10.91429008]
[1772643124753,4.25228635,91.672,91.624,4.20765383]
[1772643125850,4.25228635,91.672,91.625,4.20765383]
[1772643126833,4.25228635,91.67,91.627,4.20765383]
[1772643127243,4.53660949,91.669,91.626,10.91393272]
[1772643128545,4.53660949,91.669,91.626,15.12158655]
[1772643128949,4.53660949,91.667,91.627,4.20765383]
[1772643131533,4.25228635,91.665,91.628,10.9136945]
[1772643131738,10.90917024,91.666,91.6,4.20765383]
[1772643131739,4.25228635,91.661,91.6,4.20765383]
[1772643131941,4.25228635,91.649,91.582,10.91911245]
[1772643132256,4.25228635,91.646,91.583,4.20765383]
[1772643132736,4.25228635,91.655,91.583,4.20765383]
[1772643133361,38.18209586,91.666,91.583,4.20765383]
[1772643133362,3.69383402,91.651,91.583,4.20765383]
[1772643133660,8.80945865,91.63,91.556,27.30557163]
[1772643133838,173.37579013,91.649,91.552,4.20765383]
[1772643133839,8.80945865,91.62,91.552,4.20765383]
[1772643134039,3.69383402,91.617,91.552,4.20765383]
[1772643134347,4.82477569,91.616,91.552,4.20765383]
[1772643135553,4.25228635,91.649,91.554,4.20765383]
[1772643135758,4.25228635,91.641,91.554,4.20765383]
[1772643136065,0.14216157,91.622,91.554,4.20765383]
[1772643136245,0.14216157,91.62,91.554,4.20765383]
[1772643136646,4.25228635,91.617,91.554,4.20765383]
[1772643137348,0.28432314,91.626,91.554,4.20765383]
[1772643137653,10.91405184,91.625,91.562,4.20765383]
[1772643138256,4.25228635,91.624,91.562,4.20765383]
[1772643138446,10.91405184,91.625,91.562,4.20765383]
[1772643138649,4.33206212,91.659,91.567,4.56537054]
[1772643138852,4.33206212,91.659,91.571,4.56537054]
[1772643139063,4.33206212,91.659,91.575,4.56537054]
[1772643139237,4.33206212,91.657,91.575,4.56537054]
[1772643139442,0.28432314,91.638,91.575,4.2810474]
[1772643139642,15.24480383,91.636,91.579,3.69383402]
[1772643139844,4.61638526,91.635,91.58,4.2810474]
[1772643142056,4.61638526,91.635,91.576,38.21962085]
[1772643142057,0.28432314,91.633,91.582,4.2810474]
[1772643142647,4.33206212,91.616,91.582,4.2810474]
[1772643143251,4.33206212,91.616,91.515,43.70847497]
[1772643143252,4.33206212,91.616,91.561,4.2810474]
[1772643143454,4.33206212,91.616,91.563,4.2810474]
[1772643143861,4.33206212,91.616,91.559,4.2810474]
[1772643144063,3.69383402,91.627,91.542,4.2810474]
[1772643144064,4.33206212,91.612,91.542,4.2810474]
[1772643144660,4.82477569,91.607,91.542,4.2810474]
[1772643144863,4.33206212,91.602,91.542,4.2810474]
[1772643145066,4.32258448,91.596,91.542,4.2810474]
[1772643146051,4.32258448,91.594,91.544,4.24247815]
[1772643146370,0.28432314,91.593,91.544,4.24247815]
[1772643146957,4.32258448,91.602,91.544,4.24247815]
[1772643147164,0.14216157,91.602,91.544,4.24247815]
[1772643147466,10.91667303,91.603,91.544,4.24247815]
[1772643148257,0.14216157,91.611,91.546,4.24247815]
[1772643148661,10.91560057,91.612,91.546,4.24247815]
[1772643148662,0.28432314,91.597,91.546,4.24247815]
[1772643148970,4.32258448,91.596,91.546,4.24247815]
[1772643149548,4.32258448,91.586,91.546,4.24247815]
[1772643149746,4.32258448,91.576,91.54,10.92410514]
[1772643149969,0.28432314,91.598,91.541,4.24247815]
[1772643150269,11.20242644,91.591,91.543,4.24247815]
[1772643150663,0.28432314,91.591,91.543,4.24247815]
[1772643150866,4.60690762,91.601,91.543,4.24247815]
[1772643152559,4.60690762,91.599,91.545,4.24247815]
[1772643153369,3.69383402,91.597,91.544,10.92370881]
[1772643153570,0.28432314,91.596,91.544,10.92370881]
[1772643153954,4.32258448,91.595,91.544,10.92370881]
[1772643154565,4.32258448,91.595,91.545,4.24247815]
[1772643154873,4.32258448,91.593,91.547,4.24247815]
[1772643156877,15.24056858,91.592,91.549,4.24247815]
[1772643157060,4.32258448,91.591,91.549,4.24247815]
[1772643157258,27.29436425,91.594,91.549,4.24247815]
[1772643157259,10.9178529,91.594,91.549,4.24247815]
[1772643158177,38.49309586,91.602,91.55,38.23047515]
[1772643158482,38.49309586,91.602,91.551,4.24247815]
[1772643158774,4.32258448,91.623,91.553,4.24247815]
[1772643159076,0.28432314,91.621,91.555,4.24247815]
[1772643159469,4.60690762,91.621,91.555,4.24247815]
[1772643159672,4.32258448,91.621,91.555,4.24247815]
[1772643160371,4.60690762,91.612,91.557,4.24247815]
[1772643160571,0.28432314,91.612,91.557,4.24247815]
[1772643160765,4.32258448,91.631,91.561,4.24247815]
[1772643160967,4.32258448,91.631,91.563,4.24247815]
[1772643161276,4.32258448,91.644,91.563,4.24247815]
[1772643161586,45.40790014,91.657,91.577,4.24247815]
[1772643161769,56.318143,91.657,91.591,4.24247815]
[1772643162277,4.32258448,91.656,91.591,4.24247815]
[1772643162487,4.32258448,91.656,91.596,4.24247815]
[1772643162657,4.32258448,91.677,91.602,4.24247815]
[1772643162860,10.90798027,91.676,91.602,4.24247815]
[1772643163061,4.32258448,91.675,91.602,4.24247815]
[1772643164267,4.32258448,91.675,91.612,4.24247815]
[1772643164478,4.32258448,91.675,91.596,3.69383402]
[1772643164479,4.32258448,91.667,91.614,4.24247815]
[1772643164664,0.28432314,91.657,91.614,4.24247815]
[1772643165067,4.32258448,91.683,91.614,4.24247815]
[1772643165577,0.28432314,91.67,91.614,4.24247815]
[1772643165881,4.32258448,91.667,91.614,4.24247815]
[1772643166179,4.32258448,91.665,91.614,4.24247815]
[1772643166390,0.28432314,91.647,91.614,4.24247815]
[1772643166571,10.91034633,91.657,91.616,4.24247815]
[1772643167385,4.32258448,91.656,91.616,4.24247815]
[1772643167874,4.32258448,91.654,91.616,4.24247815]
[1772643168187,4.32258448,91.65,91.615,10.91524313]
[1772643168880,15.18078853,91.649,91.607,4.12193783]
[1772643169080,10.91062455,91.654,91.607,4.12193783]
[1772643169281,15.17952422,91.66,91.607,4.12193783]
[1772643169583,4.26959474,91.659,91.607,4.12193783]
[1772643170786,10.91012241,91.658,91.609,4.12193783]
[1772643171286,4.26959474,91.657,91.609,4.12193783]
[1772643171672,0.28432314,91.65,91.609,4.12193783]
[1772643173090,4.26959474,91.674,91.611,4.12193783]
[1772643173386,4.26959474,91.652,91.612,61.3]
[1772643173687,4.26959474,91.646,91.61,10.91583888]
[1772643174076,4.26959474,91.646,91.601,5.50963454]
[1772643174077,4.26959474,91.636,91.601,5.50963454]
[1772643174281,4.26959474,91.636,91.602,10.9167922]
[1772643175394,4.26959474,91.636,91.603,4.12193783]
[1772643175583,10.91195227,91.643,91.545,4.12193783]
[1772643175584,4.26959474,91.622,91.545,4.12193783]
[1772643175790,0.28432314,91.611,91.545,4.12193783]
[1772643175972,0.28432314,91.611,91.548,4.12193783]
[1772643176380,0.28432314,91.61,91.548,4.12193783]
[1772643176581,0.28432314,91.635,91.552,4.12193783]
[1772643176887,4.55391788,91.631,91.562,4.12193783]
[1772643177074,4.55391788,91.629,91.562,4.12193783]
[1772643177793,4.55391788,91.627,91.564,4.12193783]
[1772643179870,4.26959474,91.625,91.566,4.12193783]
[1772643181183,10.91318764,91.633,91.572,4.12193783]
[1772643181492,4.82477569,91.672,91.565,136.51504394]
[1772643181493,4.26959474,91.687,91.593,0.28432314]
[1772643181792,8.80945865,91.72,91.573,10.97194913]
[1772643181793,4.26959474,91.696,91.618,4.12193783]
[1772643181983,4.26959474,91.696,91.598,3.69383402]
[1772643181984,4.26959474,91.694,91.625,4.12193783]
[1772643183075,38.17002017,91.695,91.625,4.12193783]
[1772643183076,4.26959474,91.692,91.625,4.12193783]
[1772643183471,0.28432314,91.68,91.625,4.12193783]
[1772643183895,10.90798027,91.676,91.627,4.12193783]
[1772643184095,4.26959474,91.675,91.627,4.12193783]
[1772643186195,4.26959474,91.675,91.629,4.12193783]
[1772643186788,3.69383402,91.706,91.629,4.12193783]
[1772643186789,4.26959474,91.683,91.629,4.12193783]
[1772643187897,4.26959474,91.683,91.631,4.12193783]
[1772643187898,10.90726642,91.682,91.631,4.12193783]
[1772643188473,4.26959474,91.681,91.631,4.12193783]
[1772643188672,4.26959474,91.691,91.631,4.12193783]
[1772643190700,4.26959474,91.731,91.633,4.12193783]
[1772643190897,4.26959474,91.722,91.638,4.40626097]
[1772643191575,4.26959474,91.722,91.646,0.28432314]
[1772643191775,4.26959474,91.722,91.661,4.12193783]
[1772643192878,4.26959474,91.72,91.663,4.12193783]
[1772643193497,4.26959474,91.706,91.663,4.12193783]
[1772643194818,4.26959474,91.696,91.655,10.91047951]
[1772643194990,4.26959474,91.686,91.643,10.91190816]
[1772643195510,4.26959474,91.684,91.643,15.03384599]
[1772643195682,4.26959474,91.677,91.643,15.03384599]
[1772643196498,4.26959474,91.677,91.632,4.12193783]
[1772643197008,4.26959474,91.697,91.634,4.12193783]
[1772643197897,10.90464974,91.704,91.636,4.12193783]
[1772643198099,10.90410837,91.709,91.642,4.12193783]
[1772643198608,4.37846185,91.708,91.642,4.12193783]
[1772643198985,15.28275487,91.707,91.644,4.13928412]
[1772643199186,10.90322299,91.716,91.646,4.13928412]
[1772643199408,0.2,91.74,91.657,0.14216157]
[1772643199709,0.2,91.74,91.662,4.42360726]
[1772643199904,0.2,91.74,91.676,0.28432314]
[1772643200114,0.2,91.74,91.691,4.13928412]
[1772643200907,0.2,91.74,91.693,4.13928412]
[1772643201095,0.2,91.74,91.692,61.3]
[1772643201096,10.90048943,91.739,91.695,4.13928412]
[1772643201300,10.90048943,91.739,91.697,4.13928412]
[1772643202509,4.37846185,91.738,91.697,4.13928412]
[1772643202886,4.37846185,91.736,91.697,4.13928412]
[1772643203293,10.90096473,91.735,91.699,4.13928412]
[1772643204099,15.27942658,91.735,91.699,4.13928412]
[1772643205009,4.24141702,91.734,91.699,4.13928412]
[1772643205818,4.24141702,91.734,91.7,38.16793892]
[1772643206133,0.2,91.74,91.701,4.18158281]
[1772643206909,4.24141702,91.738,91.701,4.18158281]
[1772643208414,0.2,91.74,91.703,4.18158281]
[1772643208916,4.24141702,91.739,91.703,4.18158281]
[1772643209895,4.24141702,91.739,91.705,4.18158281]
[1772643210595,10.90060825,91.738,91.705,4.18158281]
[1772643210805,4.24141702,91.737,91.704,10.90464974]
[1772643211200,4.24141702,91.737,91.705,4.18158281]
[1772643211908,0.2,91.74,91.708,4.18158281]
[1772643213414,10.90048943,91.739,91.708,4.18158281]
[1772643213608,0.2,91.74,91.708,4.18158281]
[1772643214107,0.2,91.74,91.71,4.18158281]
[1772643214505,0.2,91.74,91.709,38.16419325]
[1772643214506,4.24141702,91.775,91.711,4.18158281]
[1772643214821,4.24141702,91.775,91.713,4.18158281]
[1772643215322,0.2,91.78,91.715,4.18158281]
[1772643216017,4.24141702,91.778,91.72,4.18158281]
[1772643216321,4.24141702,91.778,91.722,4.18158281]
[1772643216496,10.89625461,91.775,91.722,4.18158281]
[1772643216703,10.89692597,91.769,91.722,4.18158281]
[1772643217018,15.13834299,91.769,91.722,4.18158281]
[1772643217205,10.89692597,91.769,91.722,4.18158281]
[1772643217405,4.24141702,91.768,91.722,4.18158281]
[1772643218104,1.19917185,91.77,91.724,4.18158281]
[1772643219808,27.2336265,91.799,91.723,38.15836812]
[1772643219809,0.2,91.8,91.729,4.46590595]
[1772643220024,0.2,91.8,91.741,4.18158281]
[1772643220211,0.2,91.8,91.743,4.18158281]
[1772643221424,10.89336485,91.799,91.743,4.18158281]
[1772643221724,15.13478187,91.799,91.743,4.18158281]
[1772643222124,4.24141702,91.798,91.743,4.18158281]
[1772643222419,4.24141702,91.796,91.745,4.18158281]
[1772643224828,15.13525655,91.795,91.747,4.18158281]
[1772643225209,4.24141702,91.795,91.747,4.18158281]
[1772643225615,15.33472604,91.8,91.747,4.18158281]
[1772643225829,4.24141702,91.799,91.747,4.18158281]
[1772643226130,1e-08,91.8,91.747,4.18158281]
[1772643226433,4.24141702,91.819,91.75,4.18158281]
[1772643226628,4.24141702,91.819,91.749,3.69383402]
[1772643226629,4.24141702,91.817,91.752,4.18158281]
[1772643227013,4.24141702,91.815,91.757,4.18158281]
[1772643227828,4.24141702,91.807,91.757,4.18158281]
[1772643229131,4.48027562,91.805,91.758,10.8982323]
[1772643229835,4.48027562,91.797,91.759,4.09700633]
[1772643231315,4.48027562,91.795,91.76,10.89799476]
[1772643231717,10.89099206,91.819,91.761,4.09700633]
[1772643232132,4.48027562,91.818,91.761,4.09700633]
[1772643233432,4.48027562,91.816,91.752,14.99595131]
[1772643233713,4.48027562,91.816,91.753,4.09700633]
[1772643233918,4.48027562,91.809,91.752,10.89894498]
[1772643234869,4.48027562,91.809,91.753,4.09700633]
[1772643235235,4.48027562,91.807,91.753,4.09700633]
[1772643235443,4.76459876,91.805,91.755,4.09700633]
[1772643236937,4.76459876,91.803,91.757,4.09700633]
[1772643237343,4.48027562,91.803,91.757,4.09700633]
[1772643238831,4.48027562,91.801,91.759,4.09700633]
[1772643240930,4.48027562,91.797,91.761,4.09700633]
[1772643241132,4.48027562,91.797,91.76,10.89799476]
[1772643241333,4.48027562,91.797,91.761,4.09700633]
[1772643241528,10.89272847,91.805,91.761,4.09700633]
[1772643241729,4.48027562,91.804,91.761,4.09700633]
[1772643242945,10.89289021,91.803,91.762,10.89775724]
[1772643243146,4.48027562,91.802,91.762,10.89775724]
[1772643243728,4.48027562,91.802,91.763,4.09700633]
[1772643243934,0.28432314,91.807,91.763,4.09700633]
[1772643244348,4.76459876,91.807,91.763,4.09700633]
[1772643245149,4.48027562,91.818,91.765,4.09700633]
[1772643247752,4.48027562,91.816,91.767,4.09700633]
[1772643249058,4.48027562,91.806,91.758,4.09700633]
[1772643249249,4.48027562,91.806,91.757,10.89826627]
[1772643249250,4.48027562,91.786,91.729,4.09700633]
[1772643250355,4.48027562,91.786,91.72,3.69383402]
[1772643250356,0.28432314,91.798,91.731,4.09700633]
[1772643250555,4.48027562,91.802,91.734,4.38132947]
[1772643251057,0.14216157,91.809,91.734,4.38132947]
[1772643251265,4.62243719,91.809,91.734,4.38132947]
[1772643251561,4.48027562,91.807,91.734,4.09700633]
[1772643253043,4.48027562,91.805,91.736,4.09700633]
[1772643254644,4.48027562,91.803,91.738,4.09700633]
[1772643255156,4.48027562,91.818,91.743,4.38132947]
[1772643255359,4.48027562,91.818,91.75,4.09700633]
[1772643255654,4.48027562,91.818,91.762,4.09700633]
[1772643257074,4.48027562,91.816,91.764,4.09700633]
[1772643258066,4.48027562,91.814,91.766,4.09700633]
[1772643260084,14.97119832,91.813,91.768,4.49090516]
[1772643260361,4.07949454,91.812,91.768,4.49090516]
[1772643260770,0.28432314,91.817,91.768,4.49090516]
[1772643261161,4.07949454,91.821,91.769,4.49090516]
[1772643261752,4.07949454,91.819,91.769,4.49090516]
[1772643262558,4.07949454,91.818,91.771,4.49090516]
[1772643263465,4.07949454,91.816,91.771,4.49090516]
[1772643265071,14.94984519,91.824,91.773,4.16259634]
[1772643265265,10.88992723,91.828,91.773,4.16259634]
[1772643265567,4.05936491,91.819,91.773,4.16259634]
[1772643266063,4.05936491,91.818,91.773,4.16259634]
[1772643266972,0.2,91.83,91.773,4.16259634]
[1772643267150,10.88998461,91.828,91.775,4.16259634]
[1772643267769,0.2,91.83,91.777,4.16259634]
[1772643268071,0.2,91.83,91.79,4.16259634]
[1772643268072,1e-08,91.83,91.79,4.16259634]
[1772643268870,4.05936491,91.827,91.775,4.16259634]
[1772643269381,4.05936491,91.817,91.777,4.16259634]
[1772643271271,10.89016182,91.826,91.779,4.16259634]
[1772643271272,4.05936491,91.826,91.779,4.16259634]
[1772643273457,4.05936491,91.816,91.78,38.13466986]
[1772643273679,4.05936491,91.816,91.78,10.89561996]
[1772643274185,4.05936491,91.816,91.765,4.16259634]
[1772643274186,4.05936491,91.802,91.766,10.89728221]
[1772643274379,4.05936491,91.796,91.766,10.89728221]
[1772643275669,4.05936491,91.794,91.757,10.89835107]
[1772643276261,4.05936491,91.794,91.758,4.16259634]
[1772643277881,4.05936491,91.794,91.733,3.69383402]
[1772643277882,4.05936491,91.806,91.76,4.16259634]
[1772643278377,4.05936491,91.804,91.759,38.14339737]
[1772643278561,10.89253092,91.807,91.759,38.14339737]
[1772643278562,4.05936491,91.796,91.76,4.16259634]
[1772643279373,4.05936491,91.805,91.76,4.16259634]
[1772643279756,4.05936491,91.805,91.762,4.16259634]
[1772643279957,4.05936491,91.814,91.762,4.16259634]
[1772643280459,4.05936491,91.826,91.762,4.16259634]
[1772643281867,4.05936491,91.824,91.764,4.16259634]
[1772643282387,0.28432314,91.823,91.764,4.16259634]
[1772643282574,4.05936491,91.816,91.764,4.16259634]
[1772643285362,4.05936491,91.814,91.766,4.16259634]
[1772643285567,4.05936491,91.814,91.765,38.14090338]
[1772643285568,4.05936491,91.81,91.765,38.14090338]
[1772643285795,4.05936491,91.796,91.765,10.89740096]
[1772643285989,4.05936491,91.796,91.76,10.89792991]
[1772643286301,0.14216157,91.787,91.746,4.16259634]
[1772643286470,4.05936491,91.797,91.747,4.16259634]
[1772643289693,4.05936491,91.797,91.749,4.45204607]
[1772643289898,4.6730044,91.807,91.748,10.89942015]
[1772643290193,4.6730044,91.807,91.736,61.3]
[1772643290194,4.6730044,91.8,91.738,3.69383402]
[1772643290499,4.6730044,91.8,91.739,8.14588009]
[1772643291599,4.6730044,91.8,91.739,3.69383402]
[1772643291916,4.38868126,91.788,91.733,10.90108995]
[1772643292086,4.38868126,91.768,91.733,10.90108995]
[1772643292287,4.38868126,91.768,91.734,4.45204607]
[1772643294402,4.38868126,91.783,91.735,10.90096473]
[1772643294605,4.38868126,91.808,91.736,4.45204607]
[1772643294805,4.38868126,91.804,91.736,4.45204607]
[1772643295003,0.28432314,91.794,91.736,4.45204607]
[1772643295197,4.38868126,91.802,91.739,4.45204607]
[1772643296205,4.38868126,91.802,91.741,4.45204607]
[1772643296408,4.38868126,91.8,91.741,4.45204607]
[1772643297404,4.38868126,91.794,91.741,4.45204607]
[1772643300017,4.38868126,91.792,91.744,4.45204607]
[1772643300395,4.38868126,91.792,91.743,38.15004959]
[1772643300800,4.38868126,91.792,91.744,4.45204607]
[1772643302318,4.38868126,91.79,91.746,4.45204607]
[1772643303429,10.89431425,91.791,91.701,4.45204607]
[1772643303430,4.38868126,91.769,91.701,4.45204607]
[1772643303900,0.28432314,91.756,91.704,4.45204607]
[1772643304099,0.28432314,91.755,91.704,4.45204607]
[1772643304327,4.38868126,91.756,91.706,4.45204607]
[1772643304527,4.38868126,91.769,91.711,4.45204607]
[1772643304822,4.38868126,91.769,91.713,4.45204607]
[1772643304994,4.38868126,91.794,91.725,3.69383402]
[1772643305202,4.38868126,91.794,91.73,4.45204607]
[1772643305395,4.38868126,91.826,91.738,4.45204607]
[1772643305600,0.28432314,91.825,91.738,4.45204607]
[1772643305806,4.38868126,91.822,91.738,4.45204607]